[Event "Chpt France Universitaire 2024"]
[Site "Bastia, France"]
[Date "2024.04.06"]
[Round "6.1"]
[White "Rakotomaharo, Fy Antenaina"]
[Black "Roux, Baptiste"]
[Result "1-0"]
[TimeControl "15min+5s"]
[WhiteElo "2448"]
[BlackElo "2361"]

1. e4 {[%clk 00:15:05]} {[%emt 00:00:02]} c5 {[%clk 00:15:05]} {[%emt
00:00:01]} 2. a4 {[%clk 00:15:05]} {[%emt 00:00:02]} e6 {[%clk 00:15:05]} 3. g3
{[%clk 00:15:05]} {[%emt 00:00:01]} Nc6 {[%clk 00:15:00]} {[%emt 00:00:11]} 4.
d3 {[%clk 00:15:05]} {[%emt 00:00:05]} d5 {[%clk 00:13:05]} {[%emt 00:02:00]} 5.
Nd2 {[%clk 00:15:05]} {[%emt 00:00:04]} Bd6 {[%clk 00:12:53]} {[%emt 00:00:17]}
6. Bg2 {[%clk 00:14:59]} {[%emt 00:00:10]} Nge7 {[%clk 00:12:53]} {[%emt
00:00:03]} 7. f4 {[%clk 00:14:53]} {[%emt 00:00:11]} O-O {[%clk 00:11:53]}
{[%emt 00:01:06]} 8. Ngf3 {[%clk 00:14:53]} {[%emt 00:00:03]} Bd7 {[%clk
00:11:30]} {[%emt 00:00:29]} 9. O-O {[%clk 00:14:38]} {[%emt 00:00:20]} Rc8
{[%clk 00:11:21]} {[%emt 00:00:14]} 10. c3 {[%clk 00:13:43]} {[%emt 00:00:59]}
a6 {[%clk 00:09:18]} {[%emt 00:02:09]} 11. e5 {[%clk 00:12:30]} {[%emt
00:01:17]} Bb8 {[%clk 00:09:18]} {[%emt 00:00:04]} 12. Nb3 {[%clk 00:12:30]}
{[%emt 00:00:03]} Na5 {[%clk 00:08:42]} {[%emt 00:00:42]} 13. Be3 {[%clk
00:11:59]} {[%emt 00:00:35]} Nxb3 {[%clk 00:06:35]} {[%emt 00:02:12]} 14. Qxb3
{[%clk 00:11:59]} {[%emt 00:00:03]} b6 {[%clk 00:06:33]} {[%emt 00:00:07]} 15.
d4 {[%clk 00:11:50]} {[%emt 00:00:14]} c4 {[%clk 00:06:33]} {[%emt 00:00:06]}
16. Qc2 {[%clk 00:11:17]} {[%emt 00:00:37]} b5 {[%clk 00:06:31]} {[%emt
00:00:07]} 17. axb5 {[%clk 00:11:17]} {[%emt 00:00:05]} axb5 {[%clk 00:06:21]}
{[%emt 00:00:16]} 18. g4 {[%clk 00:11:17]} {[%emt 00:00:04]} b4 {[%clk
00:06:09]} {[%emt 00:00:17]} 19. Ng5 {[%clk 00:10:20]} {[%emt 00:01:01]} g6
{[%clk 00:06:09]} {[%emt 00:00:02]} 20. Qf2 {[%clk 00:10:20]} {[%emt 00:00:03]}
h6 {[%clk 00:05:13]} {[%emt 00:01:02]} 21. Nf3 {[%clk 00:10:16]} {[%emt
00:00:08]} Kh7 {[%clk 00:05:03]} {[%emt 00:00:15]} 22. f5 {[%clk 00:08:19]}
{[%emt 00:02:02]} exf5 {[%clk 00:04:06]} {[%emt 00:01:03]} 23. Qh4 {[%clk
00:08:11]} {[%emt 00:00:13]} Ng8 {[%clk 00:04:01]} {[%emt 00:00:10]} 24. Bg5
{[%clk 00:08:09]} {[%emt 00:00:07]} Qb6 {[%clk 00:03:24]} {[%emt 00:00:42]} 25.
Bxh6 {[%clk 00:06:49]} {[%emt 00:01:25]} Nxh6 {[%clk 00:03:24]} {[%emt
00:00:02]} 26. g5 {[%clk 00:06:49]} {[%emt 00:00:01]} Rh8 {[%clk 00:01:24]}
{[%emt 00:02:06]} 27. gxh6 {[%clk 00:06:38]} {[%emt 00:00:15]} Rhf8 {[%clk
00:01:24]} 28. Qe7 {[%clk 00:06:12]} {[%emt 00:00:31]} Qd8 {[%clk 00:00:16]}
{[%emt 00:01:13]} 29. Ng5+ {[%emt 00:00:11]} Kg8 30. h7+ {[%emt 00:00:02]} Kg7
31. h8=Q+ {[%clk 00:06:05]} {[%emt 00:00:06]} Kxh8 {[%clk 00:00:16]} {[%emt
00:00:01]} 32. Nxf7+ {[%clk 00:06:05]} {[%emt 00:00:02]} Rxf7 {[%clk 00:00:16]}
{[%emt 00:00:01]} 33. Qxf7 {[%clk 00:06:05]} {[%emt 00:00:01]} Qe8 {[%clk
00:00:11]} {[%emt 00:00:10]} 34. Qf6+ {[%clk 00:06:05]} {[%emt 00:00:01]} Kg8
{[%clk 00:00:11]} {[%emt 00:00:01]} 35. Bxd5+ {[%clk 00:06:05]} {[%emt
00:00:04]} 1-0

[Event "Chpt France Universitaire 2024"]
[Site "Bastia, France"]
[Date "2024.04.06"]
[Round "6.2"]
[White "Dalaud, Dorian"]
[Black "Maache, Jawad"]
[Result "1-0"]
[TimeControl "15min+5s"]
[WhiteElo "2307"]
[BlackElo "2154"]

1. e4 {[%clk 00:15:02]} {[%emt 00:00:07]} c5 {[%clk 00:14:59]} {[%emt
00:00:11]} 2. Nf3 {[%clk 00:15:02]} {[%emt 00:00:01]} d6 {[%clk 00:14:59]}
{[%emt 00:00:01]} 3. Bb5+ {[%clk 00:15:02]} {[%emt 00:00:01]} Bd7 {[%clk
00:14:57]} {[%emt 00:00:07]} 4. Bxd7+ {[%clk 00:15:02]} {[%emt 00:00:05]} Nxd7
{[%clk 00:14:57]} {[%emt 00:00:02]} 5. O-O {[%clk 00:15:02]} {[%emt 00:00:05]}
g6 {[%clk 00:14:51]} {[%emt 00:00:11]} 6. c3 {[%clk 00:14:58]} {[%emt
00:00:10]} Ngf6 {[%clk 00:14:36]} {[%emt 00:00:20]} 7. Qe2 {[%clk 00:14:52]}
{[%emt 00:00:11]} Bg7 {[%clk 00:14:27]} {[%emt 00:00:14]} 8. d4 {[%clk
00:14:52]} {[%emt 00:00:05]} O-O {[%clk 00:14:08]} {[%emt 00:00:24]} 9. e5
{[%clk 00:13:53]} {[%emt 00:01:04]} dxe5 {[%clk 00:12:34]} {[%emt 00:01:39]} 10.
dxe5 {[%clk 00:13:53]} {[%emt 00:00:01]} Ng4 {[%clk 00:11:59]} {[%emt
00:00:40]} 11. Bf4 {[%clk 00:12:46]} {[%emt 00:01:12]} Qc7 {[%clk 00:10:42]}
{[%emt 00:01:22]} 12. Re1 {[%clk 00:12:46]} {[%emt 00:00:01]} Rad8 {[%clk
00:09:02]} {[%emt 00:01:46]} 13. Na3 {[%clk 00:12:46]} {[%emt 00:00:01]} Nb6
{[%clk 00:08:16]} {[%emt 00:00:51]} 14. Nb5 {[%clk 00:11:09]} {[%emt 00:01:41]}
Qb8 {[%clk 00:08:16]} {[%emt 00:00:05]} 15. Bg3 {[%clk 00:09:31]} {[%emt
00:01:43]} e6 {[%clk 00:07:32]} {[%emt 00:00:49]} 16. h3 {[%clk 00:09:24]}
{[%emt 00:00:11]} Nh6 {[%clk 00:07:32]} {[%emt 00:00:04]} 17. Nd6 {[%clk
00:09:24]} {[%emt 00:00:01]} Nc8 {[%clk 00:07:19]} {[%emt 00:00:18]} 18. Ne4
{[%clk 00:08:15]} {[%emt 00:01:14]} Qc7 {[%clk 00:06:34]} {[%emt 00:00:50]} 19.
Bh4 {[%clk 00:07:54]} {[%emt 00:00:26]} Ne7 {[%clk 00:05:45]} {[%emt 00:00:54]}
20. Nf6+ {[%clk 00:06:34]} {[%emt 00:01:25]} Kh8 {[%clk 00:05:45]} {[%emt
00:00:05]} 21. g4 {[%clk 00:06:18]} {[%emt 00:00:21]} Nd5 {[%clk 00:05:24]}
{[%emt 00:00:27]} 22. Nxd5 {[%clk 00:05:35]} {[%emt 00:00:48]} Rxd5 {[%clk
00:05:24]} {[%emt 00:00:01]} 23. Rad1 {[%clk 00:05:35]} {[%emt 00:00:01]} Ng8
{[%clk 00:03:51]} {[%emt 00:01:38]} 24. Rxd5 {[%clk 00:03:34]} {[%emt
00:02:05]} exd5 {[%clk 00:03:51]} {[%emt 00:00:01]} 25. Rd1 {[%clk 00:03:34]}
Qc6 {[%clk 00:02:15]} {[%emt 00:01:41]} 26. Qd3 {[%clk 00:03:28]} {[%emt
00:00:10]} f6 {[%clk 00:02:15]} {[%emt 00:00:04]} 27. Qxd5 {[%clk 00:03:12]}
{[%emt 00:00:21]} fxe5 {[%clk 00:01:35]} {[%emt 00:00:45]} 28. Qxc6 {[%clk
00:03:07]} {[%emt 00:00:10]} bxc6 {[%clk 00:01:35]} {[%emt 00:00:01]} 29. Ng5
{[%clk 00:03:06]} {[%emt 00:00:06]} Bf6 {[%clk 00:01:28]} {[%emt 00:00:13]} 30.
Rd6 {[%clk 00:03:01]} {[%emt 00:00:10]} Be7 {[%clk 00:01:05]} {[%emt 00:00:28]}
31. Rxc6 {[%clk 00:02:47]} {[%emt 00:00:19]} h6 {[%clk 00:00:51]} {[%emt
00:00:19]} 32. Ne6 {[%clk 00:02:42]} {[%emt 00:00:09]} Rb8 {[%clk 00:00:49]}
{[%emt 00:00:07]} 33. Bxe7 {[%clk 00:01:53]} {[%emt 00:00:54]} Nxe7 {[%clk
00:00:49]} 34. Rc7 {[%clk 00:01:53]} {[%emt 00:00:01]} Nd5 {[%clk 00:00:47]}
{[%emt 00:00:06]} 35. Rxc5 {[%clk 00:01:53]} {[%emt 00:00:03]} Nf4 {[%clk
00:00:31]} {[%emt 00:00:22]} 36. Nxf4 {[%clk 00:01:52]} {[%emt 00:00:06]} exf4
{[%clk 00:00:31]} 37. b4 {[%clk 00:01:48]} {[%emt 00:00:09]} Rb7 {[%clk
00:00:31]} {[%emt 00:00:03]} 38. Kg2 {[%clk 00:01:48]} {[%emt 00:00:04]} 1-0

[Event "Chpt France Universitaire 2024"]
[Site "Bastia, France"]
[Date "2024.04.06"]
[Round "6.3"]
[White "Gatineau, Yovann"]
[Black "Lordier, Sophia"]
[Result "1-0"]
[TimeControl "15min+5s"]
[WhiteElo "2408"]
[BlackElo "1934"]

1. d4 {[%clk 00:15:05]} d5 {[%clk 00:15:05]} {[%emt 00:00:04]} 2. c4 {[%clk
00:15:05]} {[%emt 00:00:01]} e6 {[%clk 00:15:05]} 3. Nf3 {[%clk 00:15:05]}
{[%emt 00:00:02]} Nf6 {[%clk 00:15:05]} 4. Nc3 {[%clk 00:15:05]} {[%emt
00:00:05]} Be7 {[%clk 00:15:05]} {[%emt 00:00:02]} 5. Bf4 {[%clk 00:15:05]}
{[%emt 00:00:01]} O-O {[%clk 00:15:05]} {[%emt 00:00:03]} 6. e3 {[%clk
00:15:05]} {[%emt 00:00:01]} b6 {[%clk 00:15:02]} {[%emt 00:00:09]} 7. Bd3
{[%clk 00:15:02]} {[%emt 00:00:07]} c5 {[%clk 00:14:30]} {[%emt 00:00:38]} 8.
cxd5 {[%clk 00:14:48]} {[%emt 00:00:19]} exd5 {[%clk 00:14:27]} {[%emt
00:00:08]} 9. O-O {[%clk 00:14:44]} {[%emt 00:00:09]} Bb7 {[%clk 00:14:13]}
{[%emt 00:00:19]} 10. Ne5 {[%clk 00:14:44]} {[%emt 00:00:03]} Ne4 {[%clk
00:13:09]} {[%emt 00:01:09]} 11. Qc2 {[%clk 00:13:27]} {[%emt 00:01:21]} f5
{[%clk 00:12:26]} {[%emt 00:00:49]} 12. dxc5 {[%clk 00:12:13]} {[%emt
00:01:20]} bxc5 {[%clk 00:11:09]} {[%emt 00:01:21]} 13. Rad1 {[%clk 00:12:05]}
{[%emt 00:00:12]} Qc8 {[%clk 00:10:14]} {[%emt 00:01:00]} 14. Bxe4 {[%clk
00:10:41]} {[%emt 00:01:28]} dxe4 {[%clk 00:09:25]} {[%emt 00:00:54]} 15. Qb3+
{[%clk 00:10:41]} {[%emt 00:00:02]} c4 {[%clk 00:09:25]} 16. Nxc4 {[%clk
00:10:41]} {[%emt 00:00:01]} Kh8 {[%clk 00:09:25]} {[%emt 00:00:02]} 17. Ne5
{[%clk 00:10:41]} {[%emt 00:00:02]} h6 {[%clk 00:08:57]} {[%emt 00:00:33]} 18.
Ng6+ {[%clk 00:10:33]} {[%emt 00:00:13]} 1-0

[Event "Chpt France Universitaire 2024"]
[Site "Bastia, France"]
[Date "2024.04.06"]
[Round "6.4"]
[White "Arcelin, Gael"]
[Black "Harutyunyan, Safar"]
[Result "0-1"]
[TimeControl "15min+5s"]
[WhiteElo "2126"]
[BlackElo "2266"]

1. e4 {[%clk 00:15:05]} {[%emt 00:00:03]} e6 {[%clk 00:15:05]} 2. d4 {[%clk
00:15:01]} {[%emt 00:00:09]} d5 {[%clk 00:15:05]} 3. e5 {[%clk 00:15:01]} c5
{[%clk 00:15:05]} 4. c3 {[%clk 00:15:01]} {[%emt 00:00:02]} Nc6 {[%clk
00:15:05]} 5. Nf3 {[%clk 00:15:01]} {[%emt 00:00:02]} Bd7 {[%clk 00:15:05]} 6.
Be2 {[%clk 00:15:01]} {[%emt 00:00:05]} h6 {[%clk 00:15:05]} {[%emt 00:00:01]}
7. O-O {[%clk 00:15:00]} {[%emt 00:00:07]} a6 {[%clk 00:15:05]} 8. Kh1 {[%clk
00:14:47]} {[%emt 00:00:19]} Rc8 {[%clk 00:15:05]} {[%emt 00:00:02]} 9. Kg1
{[%clk 00:14:28]} {[%emt 00:00:24]} Nge7 {[%clk 00:15:05]} {[%emt 00:00:03]} 10.
Na3 {[%clk 00:14:28]} {[%emt 00:00:01]} Nf5 {[%clk 00:14:56]} {[%emt 00:00:15]}
11. Nc2 {[%clk 00:14:28]} {[%emt 00:00:01]} cxd4 {[%clk 00:14:50]} {[%emt
00:00:11]} 12. cxd4 {[%clk 00:14:28]} {[%emt 00:00:01]} Qb6 {[%clk 00:14:50]}
{[%emt 00:00:05]} 13. g4 {[%clk 00:11:51]} {[%emt 00:02:43]} Nfe7 {[%clk
00:14:50]} {[%emt 00:00:02]} 14. Rb1 {[%clk 00:11:43]} {[%emt 00:00:14]} h5
{[%clk 00:14:36]} {[%emt 00:00:19]} 15. h3 {[%clk 00:11:43]} {[%emt 00:00:03]}
hxg4 {[%clk 00:14:36]} {[%emt 00:00:03]} 16. hxg4 {[%clk 00:11:43]} Ng6 {[%clk
00:14:33]} {[%emt 00:00:08]} 17. Bd2 {[%clk 00:07:27]} {[%emt 00:04:21]} Be7
{[%clk 00:14:08]} {[%emt 00:00:30]} 18. b4 {[%clk 00:07:20]} {[%emt 00:00:12]}
Na7 {[%clk 00:13:59]} {[%emt 00:00:14]} 19. Bd3 {[%clk 00:03:55]} {[%emt
00:03:31]} Bb5 {[%clk 00:13:38]} {[%emt 00:00:25]} 20. Bxb5+ {[%emt 00:00:26]}
Nxb5 {[%clk 00:13:11]} {[%emt 00:00:07]} 21. Rb3 {[%clk 00:03:55]} {[%emt
00:00:02]} Nh4 {[%clk 00:12:38]} {[%emt 00:00:38]} 22. Nxh4 {[%clk 00:02:28]}
{[%emt 00:01:32]} Rxh4 {[%clk 00:12:38]} {[%emt 00:00:02]} 23. f3 {[%clk
00:00:29]} {[%emt 00:02:04]} Qc6 {[%clk 00:12:02]} {[%emt 00:00:41]} 24. Rb2
{[%clk 00:00:16]} {[%emt 00:00:19]} Nc3 {[%clk 00:11:51]} {[%emt 00:00:16]} 25.
Bxc3 {[%clk 00:00:12]} {[%emt 00:00:09]} Qxc3 {[%clk 00:11:51]} {[%emt
00:00:02]} 26. Qc1 {[%clk 00:00:12]} Rh8 {[%clk 00:10:59]} {[%emt 00:00:56]} 27.
Rf2 {[%clk 00:00:12]} {[%emt 00:00:02]} Qxd4 {[%clk 00:10:11]} {[%emt
00:00:53]} 28. Nxd4 {[%clk 00:00:12]} {[%emt 00:00:04]} Rxc1+ {[%clk 00:10:11]}
{[%emt 00:00:01]} 29. Rf1 {[%clk 00:00:10]} {[%emt 00:00:07]} Rc4 {[%clk
00:10:06]} {[%emt 00:00:10]} 30. Nc2 {[%clk 00:00:09]} {[%emt 00:00:06]} Kd7
{[%clk 00:10:02]} {[%emt 00:00:09]} 31. Kg2 {[%clk 00:00:08]} {[%emt 00:00:07]}
Rhc8 {[%clk 00:09:53]} {[%emt 00:00:14]} 32. Rf2 {[%clk 00:00:08]} {[%emt
00:00:01]} b5 {[%clk 00:09:43]} {[%emt 00:00:15]} 33. Rd2 {[%clk 00:00:08]}
{[%emt 00:00:04]} Bg5 {[%clk 00:09:39]} {[%emt 00:00:08]} 34. Re2 {[%clk
00:00:08]} {[%emt 00:00:01]} Bc1 {[%clk 00:09:39]} {[%emt 00:00:03]} 0-1

[Event "Chpt France Universitaire 2024"]
[Site "Bastia, France"]
[Date "2024.04.06"]
[Round "6.5"]
[White "Eveno, Nathan"]
[Black "Aghamir Alrobiai, Nizar"]
[Result "1-0"]
[TimeControl "15min+5s"]
[WhiteElo "2192"]
[BlackElo "2098"]

1. e4 {[%clk 00:15:05]} e6 {[%clk 00:15:05]} {[%emt 00:00:02]} 2. d4 {[%clk
00:15:05]} {[%emt 00:00:02]} d5 {[%clk 00:15:05]} 3. Nc3 {[%clk 00:15:05]}
{[%emt 00:00:01]} Bb4 {[%clk 00:15:05]} {[%emt 00:00:01]} 4. e5 {[%clk
00:15:05]} {[%emt 00:00:01]} c5 {[%clk 00:15:05]} 5. a3 {[%clk 00:15:05]}
{[%emt 00:00:02]} Bxc3+ {[%clk 00:15:05]} {[%emt 00:00:01]} 6. bxc3 {[%clk
00:15:05]} Qa5 {[%clk 00:15:05]} {[%emt 00:00:01]} 7. Bd2 {[%clk 00:15:05]}
{[%emt 00:00:03]} Qa4 {[%clk 00:15:05]} {[%emt 00:00:01]} 8. h4 {[%clk
00:15:05]} {[%emt 00:00:02]} Ne7 {[%clk 00:14:56]} {[%emt 00:00:15]} 9. h5
{[%clk 00:15:05]} {[%emt 00:00:05]} h6 {[%clk 00:14:56]} {[%emt 00:00:01]} 10.
Qg4 {[%clk 00:14:44]} {[%emt 00:00:26]} Rg8 {[%clk 00:14:26]} {[%emt 00:00:35]}
11. Bd3 {[%clk 00:14:31]} {[%emt 00:00:18]} Nf5 {[%clk 00:13:56]} {[%emt
00:00:35]} 12. Qf4 {[%clk 00:13:13]} {[%emt 00:01:23]} c4 {[%clk 00:13:32]}
{[%emt 00:00:30]} 13. Bxf5 {[%clk 00:10:44]} {[%emt 00:02:33]} exf5 {[%clk
00:13:32]} {[%emt 00:00:02]} 14. Kd1 {[%clk 00:10:20]} {[%emt 00:00:29]} Be6
{[%clk 00:13:25]} {[%emt 00:00:12]} 15. Ne2 {[%clk 00:09:59]} {[%emt 00:00:25]}
Nc6 {[%clk 00:13:02]} {[%emt 00:00:28]} 16. f3 {[%clk 00:08:59]} {[%emt
00:01:06]} Ne7 {[%clk 00:12:53]} {[%emt 00:00:14]} 17. Bc1 {[%clk 00:08:26]}
{[%emt 00:00:38]} O-O-O {[%clk 00:12:38]} {[%emt 00:00:19]} 18. Rb1 {[%clk
00:08:26]} {[%emt 00:00:02]} Nc6 {[%clk 00:12:19]} {[%emt 00:00:24]} 19. Ng3
{[%clk 00:08:20]} {[%emt 00:00:11]} g5 {[%clk 00:10:28]} {[%emt 00:01:56]} 20.
hxg6 {[%clk 00:08:15]} {[%emt 00:00:10]} Rxg6 {[%clk 00:10:28]} {[%emt
00:00:02]} 21. Rxh6 {[%clk 00:07:56]} {[%emt 00:00:24]} Rdg8 {[%clk 00:10:28]}
{[%emt 00:00:02]} 22. Rxg6 {[%clk 00:07:52]} {[%emt 00:00:09]} Rxg6 {[%clk
00:10:04]} {[%emt 00:00:29]} 23. Nxf5 {[%clk 00:03:53]} {[%emt 00:04:05]} Rxg2
{[%clk 00:07:46]} {[%emt 00:02:23]} 24. Nd6+ {[%clk 00:03:53]} {[%emt
00:00:01]} Kb8 {[%clk 00:07:46]} {[%emt 00:00:01]} 25. Rxb7+ {[%clk 00:02:18]}
{[%emt 00:01:40]} 1-0

[Event "Chpt France Universitaire 2024"]
[Site "Bastia, France"]
[Date "2024.04.06"]
[Round "6.6"]
[White "Dubuisson, Samuel"]
[Black "Budak, Rewi"]
[Result "0-1"]
[TimeControl "15min+5s"]
[WhiteElo "2129"]
[BlackElo "2112"]

1. Nf3 {[%clk 00:15:05]} {[%emt 00:00:03]} c5 {[%clk 00:15:05]} {[%emt
00:00:02]} 2. b3 {[%clk 00:15:05]} {[%emt 00:00:06]} Nc6 {[%clk 00:14:47]}
{[%emt 00:00:24]} 3. Bb2 {[%clk 00:15:05]} {[%emt 00:00:02]} d5 {[%clk
00:14:16]} {[%emt 00:00:36]} 4. g3 {[%clk 00:15:00]} {[%emt 00:00:09]} Nf6
{[%clk 00:13:45]} {[%emt 00:00:37]} 5. Bg2 {[%clk 00:14:52]} {[%emt 00:00:13]}
Bf5 {[%clk 00:13:40]} {[%emt 00:00:10]} 6. O-O {[%clk 00:14:48]} {[%emt
00:00:09]} Qd7 {[%clk 00:13:40]} {[%emt 00:00:02]} 7. d4 {[%clk 00:14:21]}
{[%emt 00:00:32]} cxd4 {[%clk 00:13:04]} {[%emt 00:00:41]} 8. Nxd4 {[%clk
00:14:21]} {[%emt 00:00:02]} Bh3 {[%clk 00:13:04]} {[%emt 00:00:01]} 9. Nd2
{[%clk 00:13:42]} {[%emt 00:00:43]} Bxg2 {[%clk 00:12:54]} {[%emt 00:00:15]} 10.
Kxg2 {[%clk 00:13:42]} {[%emt 00:00:02]} e6 {[%clk 00:12:54]} {[%emt 00:00:03]}
11. Nxc6 {[%clk 00:12:45]} {[%emt 00:01:03]} bxc6 {[%clk 00:12:25]} {[%emt
00:00:35]} 12. c4 {[%clk 00:12:19]} {[%emt 00:00:30]} Be7 {[%clk 00:12:22]}
{[%emt 00:00:07]} 13. cxd5 {[%clk 00:12:11]} {[%emt 00:00:14]} cxd5 {[%clk
00:12:22]} {[%emt 00:00:03]} 14. Rc1 {[%clk 00:12:04]} {[%emt 00:00:12]} O-O
{[%clk 00:12:22]} {[%emt 00:00:03]} 15. Nf3 {[%clk 00:11:36]} {[%emt 00:00:33]}
Rfc8 {[%clk 00:11:30]} {[%emt 00:00:58]} 16. Qd4 {[%clk 00:11:34]} {[%emt
00:00:06]} Ne8 {[%clk 00:10:03]} {[%emt 00:01:33]} 17. Rfd1 {[%clk 00:09:56]}
{[%emt 00:01:42]} Bf6 {[%clk 00:09:15]} {[%emt 00:00:54]} 18. Qd2 {[%clk
00:09:56]} {[%emt 00:00:05]} Bxb2 {[%clk 00:08:55]} {[%emt 00:00:24]} 19. Qxb2
{[%clk 00:09:56]} {[%emt 00:00:03]} Nd6 {[%clk 00:08:55]} {[%emt 00:00:06]} 20.
Rd2 {[%clk 00:09:33]} {[%emt 00:00:28]} Rxc1 {[%clk 00:08:32]} {[%emt
00:00:28]} 21. Qxc1 {[%clk 00:09:33]} {[%emt 00:00:02]} Rc8 {[%clk 00:08:32]}
{[%emt 00:00:02]} 22. Rc2 {[%clk 00:09:33]} {[%emt 00:00:02]} Rxc2 {[%clk
00:08:32]} {[%emt 00:00:05]} 23. Qxc2 {[%clk 00:09:33]} {[%emt 00:00:01]} Qc8
{[%clk 00:08:32]} {[%emt 00:00:01]} 24. Qxc8+ {[%clk 00:09:08]} {[%emt
00:00:30]} Nxc8 {[%clk 00:08:32]} {[%emt 00:00:01]} 25. Kf1 {[%clk 00:08:58]}
{[%emt 00:00:16]} Kf8 {[%clk 00:08:32]} {[%emt 00:00:01]} 26. Ke1 {[%clk
00:08:57]} {[%emt 00:00:05]} Ke7 {[%clk 00:08:32]} {[%emt 00:00:03]} 27. Kd2
{[%clk 00:08:57]} {[%emt 00:00:04]} Nd6 {[%clk 00:08:14]} {[%emt 00:00:23]} 28.
Ne1 {[%clk 00:07:52]} {[%emt 00:01:10]} Ne4+ {[%clk 00:07:54]} {[%emt
00:00:25]} 29. Ke3 {[%clk 00:07:52]} {[%emt 00:00:04]} Nc3 {[%clk 00:07:36]}
{[%emt 00:00:24]} 30. a3 {[%clk 00:07:30]} {[%emt 00:00:28]} e5 {[%clk
00:07:32]} {[%emt 00:00:09]} 31. Nd3 {[%clk 00:07:00]} Kd6 {[%clk 00:07:32]} 32.
f3 {[%clk 00:07:00]} f5 {[%clk 00:07:32]} 33. a4 {[%clk 00:07:00]} d4+ {[%clk
00:07:32]} 34. Kd2 {[%clk 00:07:00]} Nd5 {[%clk 00:07:32]} 35. Nf2 {[%clk
00:07:00]} Ne3 {[%clk 00:07:32]} 36. g4 {[%clk 00:07:00]} g6 {[%clk 00:07:32]}
37. h4 {[%clk 00:07:00]} h5 {[%clk 00:07:32]} 38. gxh5 {[%clk 00:07:00]} gxh5
{[%clk 00:07:32]} 39. Kd3 {[%clk 00:07:00]} Ng2 {[%clk 00:07:32]} 40. Kc4
{[%clk 00:07:00]} Nf4 {[%clk 00:07:32]} 41. Kb5 {[%clk 00:07:00]} Nxe2 {[%clk
00:07:32]} 42. Ka6 {[%clk 00:07:00]} Nc1 {[%clk 00:07:32]} 43. b4 {[%clk
00:07:00]} d3 {[%clk 00:07:32]} 44. b5 {[%clk 00:07:00]} d2 {[%clk 00:07:32]}
45. Kxa7 {[%clk 00:07:00]} Nd3 {[%clk 00:07:32]} 46. Nd1 {[%clk 00:07:00]} Nc5
{[%clk 00:07:32]} 47. a5 {[%clk 00:07:00]} Kc7 {[%clk 00:07:32]} 48. b6 {[%clk
00:07:00]} Kc6 {[%clk 00:07:32]} 49. a6 {[%clk 00:07:00]} Kb5 {[%clk 00:07:32]}
50. b7 {[%clk 00:07:00]} Nxa6 {[%clk 00:07:32]} 51. b8=Q+ {[%clk 00:07:00]}
Nxb8 {[%clk 00:07:32]} 52. Kxb8 {[%clk 00:07:00]} Kc4 {[%clk 00:07:32]} 53. Kc7
{[%clk 00:07:00]} Kd3 {[%clk 00:07:32]} 54. Kd6 {[%clk 00:07:00]} 0-1